bitfinex/quotes_ETHUSD_20240729
["timestamp","ask_amount","ask_price","bid_price","bid_amount"]
[1722252337674,0.03788661,3392.2,3391.5,3.4085]
[1722252337869,2.35842,3392.1,3391.5,3.4085]
[1722252338133,0.05895727,3392.0,3391.5,3.4085]
[1722252338356,0.05895727,3392.0,3391.5,2.3415]
[1722252338631,2.3587,3391.7,3391.4,2.99]
[1722252338794,0.05895727,3391.6,3391.4,2.99]
[1722252338997,0.03746993,3391.6,3391.4,2.99]
[1722252343095,2.39623993,3391.6,3391.4,2.99]
[1722252343296,0.05895727,3391.5,3391.4,2.99]
[1722252343713,0.03585848,3391.5,3391.4,2.99]
[1722252344050,0.03585848,3391.5,3391.4,8.7295]
[1722252344247,0.05895727,3392.3,3391.4,8.7295]
[1722252344449,0.05895727,3392.3,3391.8,1.067]
[1722252344598,2.41723727,3392.3,3391.8,1.067]
[1722252344793,2.41723727,3392.3,3391.4,7.6625]
[1722252344794,2.41730727,3392.2,3391.4,5.3036]
[1722252344998,2.41730727,3392.2,3391.6,1.067]
[1722252345500,2.35835,3392.2,3391.6,1.067]
[1722252347706,2.41721727,3392.4,3391.6,1.067]
[1722252348048,2.41721727,3392.4,3391.8,1.067]
[1722252348279,0.05895727,3392.3,3391.8,1.067]
[1722252349363,0.05895727,3392.6,3392.2,1.067]
[1722252353572,2.41702727,3392.6,3392.2,1.067]
[1722252353935,2.41702727,3392.6,3392.0,1.067]
[1722252353936,2.35815,3392.5,3392.0,1.067]
[1722252354135,0.05895727,3392.4,3392.0,1.067]
[1722252355088,0.05895727,3392.5,3392.0,1.067]
[1722252357071,2.41709727,3392.5,3392.0,1.067]
[1722252357429,2.41716727,3392.4,3391.8,8.357]
[1722252357679,0.05895727,3392.4,3391.8,8.357]
[1722252357887,2.35837,3392.2,3391.8,7.29]
[1722252358068,2.41732727,3392.2,3391.8,7.29]
[1722252358235,0.03268007,3392.1,3391.8,7.29]
[1722252358433,0.03268007,3392.1,3391.6,3.4669]
[1722252358659,2.41732727,3392.2,3391.6,3.4669]
[1722252359039,2.35837,3392.2,3391.6,3.4669]
[1722252359239,0.03267651,3392.1,3391.8,1.067]
[1722252359447,2.41721727,3392.4,3391.8,1.067]
[1722252359652,0.03261084,3392.0,3391.8,1.067]
[1722252359950,0.03255113,3391.9,3391.8,1.067]
[1722252360182,0.05895727,3392.4,3391.8,1.067]
[1722252360390,2.41712727,3392.5,3392.0,1.067]
[1722252360729,0.03156216,3392.3,3392.1,2.3041]
[1722252360851,0.03162541,3392.4,3392.1,2.3041]
[1722252361046,0.05895727,3392.6,3392.1,2.3041]
[1722252361247,0.03155976,3392.3,3392.1,2.3041]
[1722252361450,2.41702727,3392.6,3392.1,2.3041]
[1722252361650,0.0314941,3392.2,3392.1,2.3041]
[1722252361896,2.41702727,3392.6,3392.1,2.3041]
[1722252362199,2.41702727,3392.6,3391.8,1.067]
[1722252362200,4.81006,3392.4,3391.8,1.067]
[1722252362492,0.05895727,3392.3,3391.8,1.067]
[1722252362691,2.4488314,3392.3,3391.8,1.067]
[1722252362897,2.35862,3391.8,3391.7,7.29]
[1722252363054,2.35862,3391.8,3391.1,8.357]
[1722252363055,2.35872,3391.7,3391.1,8.357]
[1722252363252,0.05895727,3391.6,3391.1,8.357]
[1722252363459,0.09007531,3391.6,3391.1,8.357]
[1722252364602,0.03111804,3391.6,3391.1,8.357]
[1722252364897,0.03111804,3391.6,3391.3,1.067]
[1722252365067,0.03111804,3391.6,3391.5,3.3322]
[1722252365273,2.35843,3392.1,3391.5,2.2652]
[1722252365589,0.03104624,3391.6,3391.5,2.2652]
[1722252365755,0.05895727,3392.0,3391.5,2.2652]
[1722252365961,0.03124327,3391.9,3391.5,2.2652]
[1722252366473,0.03124327,3391.9,3391.1,12.20806]
[1722252366474,0.03124327,3391.9,3391.3,2.2893]
[1722252367597,0.03124327,3391.9,3391.3,4.64827]
[1722252367784,2.41737727,3392.1,3391.3,4.64827]
[1722252367983,0.03119913,3391.8,3391.3,2.2893]
[1722252368195,2.35849,3392.0,3391.3,2.2893]
[1722252368415,0.03113345,3391.7,3391.3,2.2893]
[1722252368613,2.35849,3392.0,3391.3,2.2893]
[1722252368796,2.35849,3392.0,3391.1,9.5446]
[1722252368797,2.46455727,3391.9,3391.1,9.5446]
[1722252368996,0.03106777,3391.6,3391.1,9.5446]
[1722252369210,2.35869,3391.8,3391.1,9.5446]
[1722252369211,0.03100208,3391.5,3391.1,9.5446]
[1722252369411,2.46455727,3391.9,3391.1,9.5446]
[1722252369623,0.03100208,3391.5,3391.1,9.5446]
[1722252369929,4.82314727,3391.9,3391.1,9.5446]
[1722252370100,0.03100208,3391.5,3391.1,9.5446]
[1722252370297,5.56548947,3391.9,3391.1,9.5446]
[1722252370594,0.03100208,3391.5,3391.1,9.5446]
[1722252370817,0.03119913,3391.8,3391.1,9.5446]
[1722252370980,0.03100208,3391.5,3391.1,9.5446]
[1722252371801,4.82314727,3391.9,3391.1,9.5446]
[1722252372014,0.03100208,3391.5,3391.1,9.5446]
[1722252372327,2.41754727,3391.9,3391.1,9.5446]
[1722252372634,2.41754727,3391.9,3391.1,11.90371]
[1722252372796,0.03119913,3391.8,3391.1,11.90371]
[1722252376131,0.03119913,3391.8,3391.1,9.5446]
[1722252376939,4.64055,3391.7,3391.1,7.29]
[1722252377101,2.35884,3391.5,3391.1,7.29]
[1722252377284,2.41791727,3391.4,3391.1,7.29]
[1722252377484,2.38984975,3391.4,3391.1,7.29]
[1722252377683,2.38984975,3391.4,3390.6,5.47736]
[1722252377684,0.05895727,3391.3,3390.6,7.4079]
[1722252377933,2.3845,3391.2,3390.6,7.4079]
[1722252378142,0.303303,3391.1,3390.6,7.4079]
[1722252378350,2.35918,3391.0,3390.6,7.4079]
[1722252378531,0.05895727,3390.9,3390.6,7.4079]
[1722252378721,0.08950176,3390.9,3390.6,7.4079]
[1722252378922,0.05895727,3390.9,3390.6,7.4079]
[1722252379123,0.03047878,3390.8,3390.6,7.4079]
[1722252381945,0.05895727,3391.0,3390.6,7.4079]
[1722252382163,0.03033167,3390.7,3390.6,7.4079]
[1722252382306,2.41816727,3391.0,3390.6,0.1179]
[1722252382509,0.03033167,3390.7,3390.6,0.1179]
[1722252382809,0.05895727,3391.0,3390.6,0.1179]
[1722252383738,0.0304631,3390.9,3390.6,0.1179]
[1722252384247,0.05895727,3391.0,3390.6,0.1179]
[1722252384456,0.02924503,3390.8,3390.6,0.1179]
[1722252385008,0.05895727,3391.1,3390.6,2.4841]
[1722252385240,0.32174818,3391.4,3390.6,2.4841]
[1722252385450,0.02822603,3391.0,3390.6,2.4841]
[1722252385822,0.02816152,3390.9,3390.6,2.4841]
[1722252386222,0.02816152,3390.9,3390.8,4.63092]
[1722252386468,2.41756727,3391.9,3391.1,2.3591]
[1722252386612,2.41756727,3391.9,3391.1,2.4180707]
[1722252387215,0.05895727,3391.9,3391.2,2.35904]
[1722252387954,2.5839,3392.1,3391.3,2.35895]
[1722252387955,0.22544,3392.1,3391.3,2.35895]
[1722252388112,0.77860227,3392.0,3391.3,2.35895]
[1722252388954,0.05895727,3392.2,3391.4,2.2925]
[1722252390125,0.05895727,3392.2,3391.4,4.65139]
[1722252391438,0.05895727,3392.2,3391.5,2.35883]
[1722252391645,0.05895727,3392.3,3391.5,2.41779405]
[1722252392610,0.05895727,3392.5,3391.5,2.41779405]
[1722252392853,0.05895727,3392.5,3391.7,2.35869]
[1722252393152,0.05895727,3392.5,3391.9,4.70185]
[1722252394240,2.35801,3392.7,3391.9,4.70185]
[1722252394241,0.05895727,3392.6,3391.9,4.70185]
[1722252395240,0.05895727,3392.6,3391.9,2.3433]
[1722252395447,2.35822,3392.4,3391.9,2.3433]
[1722252395976,2.35814,3392.5,3391.9,2.3433]
[1722252396769,0.05895727,3392.6,3391.9,2.3433]
[1722252396937,2.41703727,3392.6,3391.9,2.3433]
[1722252397136,0.54927303,3392.5,3391.9,2.3433]
[1722252397980,2.35831,3392.3,3391.6,7.29]
[1722252398182,0.05895727,3392.2,3391.6,7.29]
[1722252400966,0.05895727,3392.3,3391.6,9.64875]
[1722252401168,2.35822,3392.4,3391.6,9.64875]
[1722252401169,2.41717727,3392.4,3391.6,9.64875]
[1722252401574,2.3512,3392.7,3391.7,0.0589621]
[1722252401755,2.3512,3392.7,3392.0,2.491]
[1722252402086,2.35793,3392.8,3392.0,2.491]
[1722252402295,0.05895727,3392.7,3392.0,2.54995518]
[1722252403854,2.41686727,3392.9,3392.1,2.35841]
[1722252404053,2.89357727,3392.9,3392.1,2.35841]
[1722252404944,2.35794,3392.8,3392.0,2.5499552]
[1722252405145,0.05895727,3392.7,3392.0,2.5499552]
[1722252405345,0.05895727,3392.7,3392.0,4.9084152]
[1722252406173,0.47671,3392.9,3392.2,2.35834]
[1722252406356,0.53566727,3392.9,3392.2,2.35834]
[1722252406972,0.47671,3392.9,3392.2,2.35834]
[1722252407542,0.05895727,3393.0,3392.2,2.41729343]
[1722252407750,2.41669727,3393.1,3392.3,2.41722152]
[1722252407952,2.41669727,3393.1,3392.4,2.383]
[1722252408143,2.41669727,3393.1,3392.1,2.2972]
[1722252408144,2.35789,3392.9,3392.1,2.2972]
[1722252408398,4.67195,3392.7,3391.8,2.2972]
[1722252408560,2.35814,3392.5,3391.8,2.2972]
[1722252411095,0.05895727,3392.6,3391.8,2.2972]
[1722252412067,2.35828,3392.3,3391.8,2.2972]
[1722252413300,0.05895727,3392.4,3391.8,2.2972]
[1722252414462,0.05895727,3392.5,3391.8,4.65582]
[1722252414684,2.41698727,3392.7,3391.9,0.05896059]
[1722252415197,2.41698727,3392.7,3391.8,4.65582]
[1722252415405,2.35807,3392.6,3391.8,4.65582]
[1722252415698,2.41702727,3392.6,3391.8,4.65582]
[1722252416694,2.35807,3392.6,3391.8,4.65582]
[1722252419059,2.41692727,3392.8,3392.0,2.35847]
[1722252419261,0.05895727,3392.9,3392.1,0.0589559]
[1722252419506,2.41681727,3392.9,3392.0,4.72294]
[1722252420364,2.41681727,3392.9,3392.0,2.3645]
[1722252420559,2.358,3392.7,3392.0,2.3645]
[1722252420894,2.41681727,3392.9,3392.0,4.72294]
[1722252420895,2.35786,3392.9,3392.0,4.72294]
[1722252421197,2.41681727,3392.9,3392.0,4.72294]
[1722252421503,2.41681727,3392.9,3392.1,2.35841]
[1722252421703,3.152249,3392.9,3392.1,2.35841]
[1722252422488,3.152249,3392.9,3392.0,2.3645]
[1722252422898,2.35804,3392.7,3392.0,2.3645]
[1722252423308,2.35804,3392.7,3392.2,1.066]
[1722252424175,0.05895727,3392.6,3392.2,1.066]
[1722252424509,2.35804,3392.7,3392.2,1.066]
[1722252424674,0.5510309,3392.7,3392.2,1.066]
[1722252425203,0.05895727,3392.7,3392.2,1.066]
[1722252426165,0.05895727,3392.7,3392.0,2.3645]
[1722252426166,0.05895727,3392.8,3392.4,1.066]
[1722252426908,2.41688727,3392.8,3392.4,1.066]
[1722252427120,2.35809,3392.6,3392.2,1.066]
[1722252427823,2.41709727,3392.5,3392.0,2.3645]
[1722252428132,2.41709727,3392.5,3392.0,3.4305]
[1722252428782,2.35833,3392.3,3392.0,1.066]
[1722252429124,2.41731727,3392.2,3391.7,3.0]
[1722252429884,2.35842,3392.1,3391.7,3.0]
[1722252431028,2.41730727,3392.2,3391.7,3.0]
[1722252431610,2.35817,3392.5,3391.7,3.0]
[1722252431611,2.41720727,3392.4,3391.7,3.0]
[1722252431929,2.35814,3392.5,3391.7,5.35869]
[1722252432986,2.35787,3392.9,3391.8,2.61795774]
[1722252433198,0.05895727,3392.8,3391.9,2.4148]
[1722252433494,2.41693727,3392.8,3392.0,2.41739612]
[1722252433708,0.05895727,3392.7,3392.0,2.41739612]
[1722252433908,0.05895727,3392.7,3392.0,0.05895612]
[1722252434289,0.05895727,3392.7,3392.0,2.41742612]
[1722252434490,0.05895727,3392.8,3392.0,2.41742612]
[1722252435342,2.41682727,3392.9,3392.0,2.41742612]
[1722252436108,2.2564,3393.0,3392.2,2.3583]
[1722252436308,0.05895727,3393.0,3392.3,2.35827]
[1722252436642,0.05895727,3393.0,3392.2,0.05895184]
[1722252436844,2.41675727,3393.0,3392.2,2.41728184]
[1722252438032,2.41675727,3393.0,3392.2,0.05895184]
[1722252438033,2.35787,3392.9,3392.2,0.05895184]
[1722252438550,0.05895727,3392.8,3392.2,0.05895184]
[1722252438704,0.05895727,3392.8,3392.1,2.4034]
[1722252439821,0.05895727,3392.8,3392.1,4.8207619]
[1722252440332,0.05895727,3393.0,3392.2,2.35833]
[1722252440534,0.05895727,3393.0,3392.2,2.41728189]
[1722252440738,2.41675727,3393.0,3392.2,2.41728189]
[1722252444142,2.35786,3392.9,3392.1,2.4034]
[1722252444348,0.05895727,3392.8,3392.1,4.76181]
[1722252445024,0.05895727,3392.8,3392.2,0.05895183]
[1722252446808,2.35807,3392.6,3392.0,7.29]
[1722252447014,4.66996,3392.4,3392.0,7.29]
[1722252447251,2.41723727,3392.3,3392.0,7.29]
[1722252447710,2.41723727,3392.3,3391.5,11.96053]
[1722252447909,0.05895727,3392.2,3391.5,9.64883]
[1722252448218,2.41730727,3392.2,3391.5,7.29]
[1722252448616,3.12603,3392.2,3391.5,7.29]
[1722252448815,2.35853,3392.0,3391.5,7.29]
[1722252449017,0.05895727,3391.9,3391.2,2.35903]
[1722252449989,0.05895727,3391.9,3391.2,5.35903]
[1722252454070,2.41751727,3391.9,3391.2,3.0]
[1722252454573,2.35856,3391.9,3391.2,3.0]
[1722252455167,2.35856,3391.9,3391.6,1.066]
[1722252455370,2.35867,3391.8,3391.6,1.066]
[1722252455569,2.41762727,3391.8,3391.6,1.066]
[1722252456048,2.35867,3391.8,3391.6,1.066]
[1722252456245,2.41765727,3391.7,3391.4,1.066]
[1722252456451,2.41765727,3391.7,3391.1,2.99]
[1722252456452,2.2941,3391.6,3391.1,2.99]
[1722252456753,2.2941,3391.6,3391.5,1.066]
[1722252457278,2.34705727,3391.9,3391.5,1.066]
[1722252457488,2.34705727,3391.9,3391.8,1.066]
[1722252462313,2.35851,3392.0,3391.8,1.066]
[1722252462314,0.05895727,3392.0,3391.8,1.066]
[1722252463616,2.49615727,3392.1,3391.8,1.066]
[1722252463918,2.35823,3392.4,3392.0,1.066]
[1722252463919,2.3241,3392.4,3392.0,1.066]
[1722252464128,0.05895727,3392.4,3392.3,1.066]
[1722252464623,2.41716727,3392.4,3392.3,1.066]
[1722252464842,3.127089,3392.4,3392.3,1.066]
[1722252465120,2.35828,3392.3,3392.1,1.066]
[1722252465335,0.05895727,3392.4,3392.1,1.066]
[1722252465529,2.3241,3392.6,3392.3,1.066]
[1722252465530,0.05895727,3392.5,3392.3,1.066]
[1722252467132,4.68221,3392.6,3392.3,1.066]
[1722252467133,2.38305727,3392.6,3392.3,1.066]
[1722252467302,2.35801,3392.7,3391.7,2.35864]
[1722252467303,2.41696727,3392.7,3392.5,1.066]
[1722252467504,0.471589,3392.6,3392.5,1.066]
[1722252467679,2.41696727,3392.7,3392.5,1.066]
[1722252468567,2.35814,3392.5,3392.3,1.066]
[1722252470990,2.4352,3392.4,3392.3,1.066]
[1722252472306,4.79341,3392.4,3392.3,1.066]
[1722252475552,2.41707727,3392.6,3392.3,1.066]
[1722252475854,2.41707727,3392.6,3392.5,1.066]
[1722252480675,2.41707727,3392.6,3391.7,2.2963]
[1722252480676,2.35834,3392.3,3391.7,2.2963]
[1722252480965,2.35834,3392.3,3392.1,1.066]
[1722252482385,4.71669,3392.3,3392.1,1.066]
[1722252482683,2.35835,3392.2,3392.1,1.066]
[1722252483042,0.05895727,3392.4,3392.1,1.066]
[1722252484882,2.35829,3392.3,3392.1,1.066]
[1722252485182,2.35835,3392.2,3392.1,1.066]
[1722252485343,2.41730727,3392.2,3392.1,1.066]
[1722252485775,2.35835,3392.2,3392.1,1.066]
[1722252487888,2.35817,3392.5,3392.1,3.369]
[1722252488190,4.71637,3392.5,3392.3,1.066]
[1722252488396,2.35821,3392.4,3392.3,1.066]
[1722252490170,2.35842,3392.1,3391.9,1.066]
[1722252490552,2.35849,3392.0,3391.9,1.066]
[1722252491571,2.35849,3392.0,3391.7,1.066]
[1722252492295,2.35849,3392.0,3391.9,1.066]
[1722252496161,0.05895727,3392.1,3391.9,1.066]
[1722252496394,2.41724727,3392.3,3391.9,3.4848]
[1722252496563,2.35829,3392.3,3392.1,1.066]
[1722252497969,2.41713727,3392.5,3392.1,1.066]
[1722252498164,0.05895727,3392.5,3392.3,1.066]
[1722252498580,0.05895727,3392.6,3392.3,1.066]
[1722252498761,0.05895727,3392.6,3391.9,4.77735]
[1722252498762,0.05895727,3392.6,3392.5,1.066]
[1722252501263,0.05895727,3392.6,3392.3,1.066]
[1722252501772,0.05895727,3392.7,3392.3,1.066]
[1722252505703,2.41695727,3392.7,3392.3,1.066]
[1722252505909,2.83560873,3392.6,3392.3,1.066]
[1722252506095,2.83560873,3392.6,3392.1,1.066]
[1722252509392,2.35812,3392.6,3392.1,1.066]
[1722252511878,4.76042,3392.6,3392.1,1.066]
[1722252512298,2.35814,3392.5,3391.9,2.4188]
[1722252512615,2.35814,3392.5,3392.1,1.066]
[1722252514118,2.35829,3392.3,3391.7,9.6632]
[1722252514303,2.41730727,3392.2,3391.8,1.066]
[1722252514503,2.35835,3392.2,3391.8,1.066]
[1722252514720,4.75985,3392.2,3391.8,1.066]
[1722252514924,4.81866727,3392.4,3391.8,1.066]
[1722252515515,2.35828,3392.3,3391.8,1.066]
[1722252515717,0.05895727,3392.2,3392.0,1.066]
[1722252516221,0.05895727,3392.2,3391.8,1.066]
[1722252516222,2.35842,3392.1,3391.8,1.066]
[1722252517917,0.58902497,3392.2,3391.8,1.066]
[1722252518212,0.05895727,3392.2,3391.8,1.066]
[1722252518822,2.41731727,3392.2,3391.8,1.066]
[1722252520906,2.35843,3392.1,3391.8,1.066]
[1722252522905,0.05895727,3392.2,3392.0,1.066]
[1722252523446,0.05895727,3392.3,3392.0,1.066]
[1722252523754,0.05895727,3392.4,3392.2,1.066]
[1722252524841,0.05895727,3392.7,3392.3,2.3748]
[1722252525078,0.05895727,3392.7,3392.5,1.066]
[1722252526856,2.35819,3392.5,3391.8,2.4841]
[1722252527181,2.35819,3392.5,3392.2,1.066]
[1722252527182,2.41714727,3392.5,3392.2,1.066]
[1722252527338,2.41714727,3392.5,3392.4,1.066]
[1722252527537,0.05895727,3392.5,3392.4,1.066]
[1722252527939,2.35807,3392.6,3392.4,1.066]
[1722252528347,0.05895727,3392.8,3392.4,1.066]
[1722252529783,2.35801,3392.7,3392.4,1.066]
[1722252530790,2.41703727,3392.6,3392.4,1.066]
[1722252531448,3.55893076,3393.7,3392.5,2.4213]
[1722252531651,2.3577,3393.2,3392.8,1.066]
[1722252531962,0.05895727,3393.1,3392.8,1.066]
[1722252532358,2.41667727,3393.1,3392.8,1.066]
[1722252532657,2.41667727,3393.1,3392.6,1.066]
[1722252532987,0.05895727,3393.0,3392.6,1.066]
[1722252536508,2.41675727,3393.0,3392.6,1.066]
[1722252536714,3.12557,3393.0,3392.5,2.4213]
[1722252537015,0.05895727,3392.9,3392.5,2.4213]
[1722252540367,0.05895727,3392.9,3392.6,1.066]
[1722252540700,0.05895727,3393.1,3392.6,1.066]
[1722252544648,0.05895727,3393.2,3392.8,1.066]
[1722252544863,0.05895727,3393.2,3393.0,1.066]
[1722252546121,0.05895727,3393.2,3392.8,1.066]
[1722252546456,2.41661727,3393.2,3392.8,1.066]
[1722252546627,2.894031,3393.2,3392.8,1.066]
[1722252547012,4.69442,3393.1,3392.8,1.066]
[1722252547212,0.05895727,3393.0,3392.6,1.066]
[1722252551178,0.05895727,3393.0,3392.3,2.35828]
[1722252551179,2.41674727,3393.0,3392.3,2.35828]
[1722252551340,2.41674727,3393.0,3392.6,1.066]
[1722252551341,0.05895727,3393.0,3392.6,1.066]
[1722252552063,2.41678727,3393.0,3392.2,7.29]
[1722252552242,2.41678727,3393.0,3392.4,1.066]
[1722252552445,2.35806,3392.7,3392.2,7.29]
[1722252552672,2.35806,3392.7,3391.3,0.61892371]
[1722252552673,2.49035727,3392.6,3391.7,7.29]
[1722252552858,2.3583,3392.3,3391.7,8.356]
[1722252553056,0.05895727,3392.2,3391.7,8.356]
[1722252553351,2.41731727,3392.2,3391.7,8.356]
[1722252553554,4.67842,3392.1,3391.7,7.29]
[1722252553749,0.05895727,3392.0,3391.7,7.29]
[1722252555262,0.05895727,3392.0,3391.7,8.356]
[1722252555590,0.05895727,3392.3,3391.9,1.066]
[1722252555797,0.05895727,3392.3,3392.1,1.066]
[1722252556761,4.84717727,3392.4,3392.1,1.066]
[1722252556963,3.20358127,3392.4,3392.1,1.066]
[1722252557307,0.05895727,3392.4,3392.3,1.066]
[1722252557692,0.05895727,3392.4,3392.1,1.066]
[1722252557895,0.05895727,3392.5,3392.1,1.066]
[1722252558589,2.41710727,3392.5,3392.1,1.066]
[1722252558773,0.72451773,3392.4,3392.1,1.066]
[1722252558976,0.05895727,3392.3,3392.1,1.066]
[1722252560565,2.35821,3392.4,3392.1,1.066]
[1722252560566,0.05895727,3392.4,3392.1,1.066]
[1722252561779,0.05895727,3392.5,3392.1,1.066]
[1722252562696,2.41709727,3392.5,3392.1,1.066]
[1722252563083,2.35821,3392.4,3392.1,1.066]
[1722252563368,0.05895727,3392.3,3392.1,1.066]
[1722252566786,2.35821,3392.4,3392.1,1.066]
[1722252566787,2.41716727,3392.4,3392.1,1.066]
[1722252570207,2.35821,3392.4,3392.1,1.066]
[1722252570396,0.05895727,3392.3,3392.1,1.066]
[1722252571818,2.41724727,3392.3,3391.9,1.066]
[1722252571967,0.05895727,3392.2,3391.9,1.066]
[1722252573208,0.05895727,3392.2,3391.7,7.29]
[1722252573371,0.05895727,3392.2,3392.1,1.066]
[1722252573572,0.05895727,3392.4,3392.1,1.066]
[1722252574016,2.41716727,3392.4,3392.1,1.066]
[1722252575725,2.35828,3392.3,3391.9,1.066]
[1722252575933,0.05895727,3392.2,3391.9,1.066]
[1722252578597,2.41730727,3392.2,3391.9,1.066]
[1722252578796,4.81860727,3392.2,3391.9,1.066]
[1722252579037,0.05895727,3392.1,3391.9,1.066]
[1722252587041,0.05895727,3392.2,3391.9,1.066]
[1722252590434,0.05895727,3392.4,3391.9,1.066]
[1722252590680,0.05895727,3392.4,3392.1,1.066]
[1722252591868,3.20771964,3393.7,3392.1,1.066]
[1722252591869,2.35776,3393.1,3392.3,1.066]
[1722252592172,2.35776,3393.1,3392.8,1.066]
[1722252592173,0.05895727,3393.0,3392.8,1.066]
[1722252593146,2.41661727,3393.2,3392.8,1.066]
[1722252593528,0.05895727,3393.2,3393.0,1.066]
[1722252593758,4.74217,3393.5,3393.0,1.066]
[1722252593759,0.05895727,3393.4,3393.0,1.066]
[1722252593959,0.53317427,3393.4,3393.0,1.066]
[1722252594198,2.35761,3393.3,3393.0,1.066]
[1722252594402,0.05895727,3393.2,3393.0,1.066]
[1722252595141,2.3847,3393.5,3393.0,1.066]
[1722252595321,0.05895727,3393.5,3393.2,1.066]
[1722252595488,2.35739,3393.6,3393.2,1.066]
[1722252595683,3.070158,3393.6,3393.2,1.066]
[1722252596015,0.712768,3393.6,3393.2,1.066]
[1722252596583,0.712768,3393.6,3393.4,1.066]
[1722252596782,0.77172527,3393.6,3393.2,1.066]
[1722252597017,3.12911527,3393.6,3393.2,1.066]
[1722252597219,0.712768,3393.6,3393.2,1.066]
[1722252597424,2.35728,3393.8,3393.4,1.066]
[1722252597722,0.05895727,3393.7,3393.2,1.066]
[1722252598822,0.05895727,3393.7,3393.4,1.066]
[1722252601250,2.35728,3393.8,3393.4,1.066]
[1722252601424,0.05895727,3393.7,3393.4,1.066]
[1722252602041,2.41626727,3393.7,3393.2,1.066]
[1722252602238,2.35738,3393.6,3393.2,1.066]
[1722252602441,2.41645727,3393.5,3393.2,1.066]
[1722252602643,5.3730088,3393.5,3393.0,1.066]
[1722252602860,2.35753,3393.4,3392.7,7.29]
[1722252603022,4.71466727,3393.3,3392.4,11.346]
[1722252603225,0.05895727,3393.2,3392.4,11.346]
[1722252603418,2.35777,3393.1,3392.4,11.346]
[1722252603614,2.41674727,3393.0,3392.4,11.346]
[1722252604352,0.05895727,3393.0,3392.4,11.346]
[1722252605214,0.05895727,3393.0,3392.4,13.7042]
[1722252605414,0.05895727,3393.0,3392.6,1.066]
[1722252605619,0.05895727,3393.2,3392.8,1.066]
[1722252605819,0.530414,3393.2,3392.8,1.066]
[1722252606056,0.05895727,3393.2,3392.8,1.066]
[1722252612166,0.05895727,3393.2,3392.4,14.90839]
[1722252612466,0.05895727,3393.2,3392.7,1.066]
[1722252615144,0.05895727,3393.2,3392.4,12.5502]
[1722252615344,2.35784,3393.0,3392.4,10.28]
[1722252615653,2.2631,3392.8,3392.4,7.29]
[1722252615985,2.35814,3392.5,3392.4,7.29]
[1722252616140,2.41709727,3392.5,3391.9,1.066]
[1722252617164,2.41709727,3392.5,3391.8,3.0]
[1722252617371,2.41709727,3392.5,3392.0,1.066]
[1722252620296,2.35822,3392.4,3392.0,1.066]
[1722252620571,0.05895727,3392.3,3392.0,1.066]
[1722252622127,2.47675727,3392.3,3392.0,1.066]
[1722252622572,2.47675727,3392.3,3391.6,7.29]
[1722252622573,2.3586,3391.9,3391.6,7.29]
[1722252622774,2.3586,3391.9,3390.9,2.35923]
[1722252622775,0.05895727,3391.8,3391.5,1.066]
[1722252623961,2.35836,3392.2,3391.5,1.066]
[1722252623962,0.05895727,3391.9,3391.5,1.066]
[1722252624167,2.35842,3392.1,3391.7,1.066]
[1722252624787,2.4178,3392.3,3391.2,2.99]
[1722252624788,2.4178,3392.3,3391.9,1.066]
[1722252624989,2.4178,3392.3,3391.5,4.67821]
[1722252624990,0.05895727,3392.9,3392.2,1.066]
[1722252625151,0.05895727,3392.9,3392.8,1.066]
[1722252625348,2.35751,3393.4,3392.8,1.066]
[1722252625544,0.05895727,3393.3,3393.1,1.066]
[1722252625748,0.05895727,3393.3,3392.1,3.05895006]
[1722252625749,2.35772,3393.1,3392.8,1.066]
[1722252625974,2.35772,3393.1,3392.5,7.29]
[1722252625975,2.35787,3392.9,3392.5,7.29]
[1722252626163,2.41688727,3392.8,3392.5,8.356]
[1722252626364,2.41678727,3393.0,3392.5,8.356]
[1722252626578,2.35786,3392.9,3392.5,8.356]
[1722252626775,0.05895727,3392.8,3392.5,8.356]
[1722252627094,2.35772,3393.1,3392.5,8.356]
[1722252627318,0.05895727,3393.0,3392.5,7.29]
[1722252628862,0.05895727,3393.1,3392.5,9.6481]
[1722252629186,2.41647727,3393.4,3392.6,2.41702084]
[1722252629382,2.41647727,3393.4,3392.4,2.35815]
[1722252629383,2.35766,3393.2,3392.4,2.35815]
[1722252629553,2.41668727,3393.1,3392.3,2.558]
[1722252629756,2.41668727,3393.1,3392.2,7.29]
[1722252629757,2.35788,3392.9,3392.2,7.29]
[1722252630690,0.05895727,3392.8,3392.2,7.29]
[1722252631593,0.05895727,3392.8,3392.2,9.64835]
[1722252633156,0.05895727,3393.0,3392.2,9.64835]
[1722252634268,2.41674727,3393.0,3392.2,9.64835]
[1722252634469,0.05895727,3392.9,3392.2,9.64835]
[1722252635798,2.41681727,3392.9,3392.2,9.64835]
[1722252635957,2.35786,3392.9,3392.2,9.64835]
[1722252636801,2.35786,3392.9,3392.2,7.29]
[1722252636802,2.41681727,3392.9,3392.2,7.29]
[1722252636998,2.35795,3392.8,3392.2,7.29]
[1722252637294,2.41690727,3392.8,3392.2,7.29]
[1722252637698,2.41700727,3392.7,3392.2,7.29]
[1722252638067,2.41706727,3392.6,3392.2,7.29]
[1722252639223,2.35822,3392.4,3392.2,7.29]
[1722252639399,2.41717727,3392.4,3391.7,19.9]
[1722252641274,2.41717727,3392.4,3391.7,22.25868]
[1722252642107,0.05895727,3392.4,3391.7,22.25868]
[1722252644007,0.05895727,3392.4,3391.7,2.35868]
[1722252645479,0.777655,3392.4,3391.6,10.29]